[Event "December 5 Early 2023"]
[Site "https://www.chess.com"]
[Date "2023.12.05"]
[Round "1"]
[White "Maltsevskaya, Aleksandra"]
[Black "YurasovMat-2012"]
[Result "0-1"]
[Board "173"]
[TimeControl "180+1"]
[WhiteFideId "24174041"]
[WhiteElo "2607"]
[BlackElo "2298"]
[WhiteTeam "POL"]
[WhiteClock "0:00:00"]
[BlackClock "0:00:17"]

1. Nf3 {[%clk 0:02:50]}  d5 {[%clk 0:02:58]} 2. g3 {[%clk 0:02:50]}  Nf6 {[%clk 0:02:58]} 3. Bg2 {[%clk 0:02:50]}  Bf5 {[%clk 0:02:55]} 4. O-O {[%clk 0:02:51]}  c6 {[%clk 0:02:55]} 5. d3 {[%clk 0:02:52]}  Nbd7 {[%clk 0:02:55]} 6. Nbd2 {[%clk 0:02:53]}  e6 {[%clk 0:02:52]} 7. b3 {[%clk 0:02:53]}  Bd6 {[%clk 0:02:52]} 8. Bb2 {[%clk 0:02:54]}  Bg6 {[%clk 0:02:51]} 9. e4 {[%clk 0:02:54]}  dxe4 {[%clk 0:02:40]} 10. dxe4 {[%clk 0:02:54]}  Be7 {[%clk 0:02:41]} 11. Qe2 {[%clk 0:02:54]}  O-O {[%clk 0:02:40]} 12. Rfd1 {[%clk 0:02:53]}  Qc7 {[%clk 0:02:40]} 13. a4 {[%clk 0:02:51]}  Rfe8 {[%clk 0:02:36]} 14. h3 {[%clk 0:02:52]}  Bc5 {[%clk 0:02:29]} 15. Kh2 {[%clk 0:02:49]}  e5 {[%clk 0:02:27]} 16. a5 {[%clk 0:02:45]}  Rad8 {[%clk 0:02:23]} 17. Nh4 {[%clk 0:02:43]}  Bh5 {[%clk 0:02:20]} 18. Ndf3 {[%clk 0:02:28]}  Bd6 {[%clk 0:02:13]} 19. a6 {[%clk 0:02:21]}  b5 {[%clk 0:02:11]} 20. Nf5 {[%clk 0:02:12]}  Bf8 {[%clk 0:02:07]} 21. g4 {[%clk 0:02:03]}  Bg6 {[%clk 0:02:06]} 22. Rd2 {[%clk 0:02:00]}  Bxf5 {[%clk 0:02:04]} 23. gxf5 {[%clk 0:01:58]}  Nh5 {[%clk 0:01:34]} 24. Rad1 {[%clk 0:01:16]}  Nf4 {[%clk 0:01:33]} 25. Qe3 {[%clk 0:01:16]}  f6 {[%clk 0:01:23]} 26. Bf1 {[%clk 0:00:33]}  Nc5 {[%clk 0:01:19]} 27. Ba3 {[%clk 0:00:23]}  Rxd2 {[%clk 0:01:08]} 28. Qxd2 {[%clk 0:00:20]}  Nxe4 {[%clk 0:01:06]} 29. Qe3 {[%clk 0:00:14]}  Bxa3 {[%clk 0:01:06]} 30. Qxe4 {[%clk 0:00:14]}  Bc5 {[%clk 0:01:05]} 31. c4 {[%clk 0:00:11]}  b4 {[%clk 0:01:04]} 32. Kg1 {[%clk 0:00:06]}  Qb6 {[%clk 0:01:04]} 33. Rd2 {[%clk 0:00:05]}  Qc7 {[%clk 0:00:59]} 34. Nh2 {[%clk 0:00:04]}  g6 {[%clk 0:00:45]} 35. fxg6 {[%clk 0:00:03]}  hxg6 {[%clk 0:00:45]} 36. Ng4 {[%clk 0:00:02]}  Kg7 {[%clk 0:00:45]} 37. Qf3 {[%clk 0:00:02]}  f5 {[%clk 0:00:43]} 38. Ne3 {[%clk 0:00:02]}  e4 {[%clk 0:00:43]} 39. Qg3 {[%clk 0:00:03]}  Kh7 {[%clk 0:00:27]} 40. Qh4+ {[%clk 0:00:03]}  Kg8 {[%clk 0:00:27]} 41. Qg3 {[%clk 0:00:03]}  Bd6 {[%clk 0:00:24]} 42. Nxf5 {[%clk 0:00:04]}  Ne2+ {[%clk 0:00:21]} 43. Rxe2 {[%clk 0:00:03]}  Bxg3 {[%clk 0:00:21]} 44. Nxg3 {[%clk 0:00:03]}  e3 {[%clk 0:00:21]} 45. Bg2 {[%clk 0:00:02]}  exf2+ {[%clk 0:00:21]} 46. Kxf2 {[%clk 0:00:03]}  Qf4+ {[%clk 0:00:20]} 47. Bf3 {[%clk 0:00:03]}  Rxe2+ {[%clk 0:00:20]} 48. Nxe2 {[%clk 0:00:04]}  Qe5 {[%clk 0:00:20]} 49. Bxc6 {[%clk 0:00:05]}  Qf6+ {[%clk 0:00:19]} 50. Bf3 {[%clk 0:00:04]}  Qxa6 {[%clk 0:00:19]} 51. Ke3 {[%clk 0:00:04]}  Qf6 {[%clk 0:00:19]} 52. Bd5+ {[%clk 0:00:04]}  Kf8 {[%clk 0:00:18]} 53. Nf4 {[%clk 0:00:03]}  Qc3+ {[%clk 0:00:17]} 54. Nd3 {[%clk 0:00:03]}  Qxb3 {[%clk 0:00:17]} 55. Ke4 {[%clk 0:00:03]}  Qc3 {[%clk 0:00:17]} 56. c5 {[%clk 0:00:03]}  b3 {[%clk 0:00:16]} 57. c6 {[%clk 0:00:04]}  b2 {[%clk 0:00:16]} 58. Nxb2 {[%clk 0:00:00]}  Qxb2 {[%clk 0:00:17]} 0-1

[Event "December 5 Early 2023"]
[Site "https://www.chess.com"]
[Date "2023.12.05"]
[Round "1"]
[White "Gruzman, Ilya"]
[Black "Principe, Gerson"]
[Result "0-1"]
[Board "174"]
[TimeControl "180+1"]
[WhiteFideId "2812703"]
[BlackFideId "3804550"]
[WhiteElo "2297"]
[BlackElo "2606"]
[WhiteTeam "ISR"]
[BlackTeam "PER"]
[WhiteClock "0:00:17"]
[BlackClock "0:00:06"]

1. d4 {[%clk 0:03:00]}  Nf6 {[%clk 0:03:00]} 2. c4 {[%clk 0:03:00]}  e6 {[%clk 0:03:00]} 3. Nf3 {[%clk 0:03:00]}  b6 {[%clk 0:03:00]} 4. g3 {[%clk 0:03:00]}  Ba6 {[%clk 0:03:00]} 5. b3 {[%clk 0:03:00]}  Bb4+ {[%clk 0:02:53]} 6. Bd2 {[%clk 0:03:00]}  Be7 {[%clk 0:02:54]} 7. Bg2 {[%clk 0:02:57]}  Bb7 {[%clk 0:02:54]} 8. Bc3 {[%clk 0:02:55]}  O-O {[%clk 0:02:52]} 9. Nbd2 {[%clk 0:02:54]}  c5 {[%clk 0:02:47]} 10. O-O {[%clk 0:02:51]}  d5 {[%clk 0:02:45]} 11. Rc1 {[%clk 0:02:43]}  Nbd7 {[%clk 0:02:36]} 12. Re1 {[%clk 0:02:41]}  Rc8 {[%clk 0:02:31]} 13. Ne5 {[%clk 0:02:29]}  Nxe5 {[%clk 0:02:11]} 14. dxe5 {[%clk 0:02:30]}  Nd7 {[%clk 0:02:10]} 15. cxd5 {[%clk 0:02:19]}  exd5 {[%clk 0:02:09]} 16. Nc4 {[%clk 0:02:07]}  Nb8 {[%clk 0:02:01]} 17. Ne3 {[%clk 0:02:05]}  Qd7 {[%clk 0:01:42]} 18. Nxd5 {[%clk 0:02:05]}  Rfd8 {[%clk 0:01:42]} 19. e4 {[%clk 0:02:04]}  Nc6 {[%clk 0:01:35]} 20. Qd3 {[%clk 0:01:51]}  Bf8 {[%clk 0:01:23]} 21. Rcd1 {[%clk 0:01:49]}  Qe8 {[%clk 0:01:19]} 22. f4 {[%clk 0:01:47]}  Nb4 {[%clk 0:01:06]} 23. Bxb4 {[%clk 0:01:45]}  cxb4 {[%clk 0:01:07]} 24. Qf3 {[%clk 0:01:45]}  Rc2 {[%clk 0:01:02]} 25. Qg4 {[%clk 0:01:36]}  Kh8 {[%clk 0:01:02]} 26. Rd3 {[%clk 0:01:15]}  Rdc8 {[%clk 0:00:55]} 27. h3 {[%clk 0:01:12]}  Rxa2 {[%clk 0:00:53]} 28. Re2 {[%clk 0:01:07]}  Ra1+ {[%clk 0:00:51]} 29. Kh2 {[%clk 0:01:08]}  Rcc1 {[%clk 0:00:50]} 30. Red2 {[%clk 0:00:58]}  Bc8 {[%clk 0:00:17]} 31. Qg5 {[%clk 0:00:43]}  h6 {[%clk 0:00:16]} 32. Qh4 {[%clk 0:00:41]}  Kh7 {[%clk 0:00:17]} 33. Ne3 {[%clk 0:00:37]}  Qe6 {[%clk 0:00:08]} 34. Qd8 {[%clk 0:00:21]}  Be7 {[%clk 0:00:08]} 35. Qd5 {[%clk 0:00:20]}  Rh1+ {[%clk 0:00:06]} 36. Bxh1 {[%clk 0:00:17]}  Qxh3# {[%clk 0:00:06]} 0-1

[Event "December 5 Early 2023"]
[Site "https://www.chess.com"]
[Date "2023.12.05"]
[Round "1"]
[White "Jahnz, Fabian"]
[Black "Roebers, Eline"]
[Result "0-1"]
[Board "184"]
[TimeControl "180+1"]
[WhiteFideId "4653300"]
[BlackFideId "1058401"]
[WhiteElo "2273"]
[BlackElo "2599"]
[WhiteTeam "GER"]
[BlackTeam "NED"]
[WhiteClock "0:00:27"]
[BlackClock "0:00:34"]

1. e4 {[%clk 0:03:00]}  c5 {[%clk 0:02:51]} 2. Nf3 {[%clk 0:03:00]}  e6 {[%clk 0:02:51]} 3. c3 {[%clk 0:03:00]}  Nf6 {[%clk 0:02:51]} 4. e5 {[%clk 0:03:00]}  Nd5 {[%clk 0:02:51]} 5. g3 {[%clk 0:03:00]}  Nc6 {[%clk 0:02:50]} 6. Bg2 {[%clk 0:03:01]}  d6 {[%clk 0:02:50]} 7. exd6 {[%clk 0:03:02]}  Bxd6 {[%clk 0:02:50]} 8. O-O {[%clk 0:03:02]}  O-O {[%clk 0:02:50]} 9. d4 {[%clk 0:03:03]}  cxd4 {[%clk 0:02:50]} 10. Nxd4 {[%clk 0:03:04]}  Nxd4 {[%clk 0:02:50]} 11. Qxd4 {[%clk 0:03:05]}  Qc7 {[%clk 0:02:47]} 12. Nd2 {[%clk 0:03:01]}  Bc5 {[%clk 0:02:44]} 13. Qd3 {[%clk 0:02:58]}  Rd8 {[%clk 0:02:38]} 14. Qc2 {[%clk 0:02:58]}  Nb4 {[%clk 0:02:27]} 15. Qb3 {[%clk 0:02:47]}  Nd3 {[%clk 0:02:24]} 16. Ne4 {[%clk 0:02:45]}  Nxc1 {[%clk 0:02:17]} 17. Raxc1 {[%clk 0:02:46]}  Bb6 {[%clk 0:02:17]} 18. Rcd1 {[%clk 0:02:45]}  Bd7 {[%clk 0:02:16]} 19. Qc2 {[%clk 0:02:41]}  Bc6 {[%clk 0:02:15]} 20. Ng5 {[%clk 0:02:36]}  g6 {[%clk 0:02:13]} 21. Bxc6 {[%clk 0:02:31]}  Qxc6 {[%clk 0:02:14]} 22. Rxd8+ {[%clk 0:02:28]}  Rxd8 {[%clk 0:02:12]} 23. Rd1 {[%clk 0:02:24]}  Rxd1+ {[%clk 0:02:05]} 24. Qxd1 {[%clk 0:02:25]}  Bxf2+ {[%clk 0:02:03]} 25. Kxf2 {[%clk 0:02:25]}  Qc5+ {[%clk 0:02:03]} 26. Qd4 {[%clk 0:02:25]}  Qxg5 {[%clk 0:02:03]} 27. Qxa7 {[%clk 0:02:25]}  Qd2+ {[%clk 0:02:02]} 28. Kg1 {[%clk 0:02:24]}  Qc1+ {[%clk 0:02:01]} 29. Kg2 {[%clk 0:02:23]}  Qxb2+ {[%clk 0:02:02]} 30. Kh3 {[%clk 0:02:24]}  Qb5 {[%clk 0:02:01]} 31. Kg2 {[%clk 0:02:09]}  Kg7 {[%clk 0:01:55]} 32. a4 {[%clk 0:02:08]}  Qc6+ {[%clk 0:01:52]} 33. Kh3 {[%clk 0:02:06]}  e5 {[%clk 0:01:51]} 34. Qe3 {[%clk 0:02:03]}  Qd7+ {[%clk 0:01:46]} 35. Kg2 {[%clk 0:02:03]}  Qd5+ {[%clk 0:01:46]} 36. Kh3 {[%clk 0:02:01]}  f5 {[%clk 0:01:43]} 37. c4 {[%clk 0:01:59]}  Qe6 {[%clk 0:01:36]} 38. Kg2 {[%clk 0:01:55]}  e4 {[%clk 0:01:35]} 39. Qd4+ {[%clk 0:01:54]}  Kh6 {[%clk 0:01:25]} 40. Qe3+ {[%clk 0:01:52]}  g5 {[%clk 0:01:22]} 41. h4 {[%clk 0:01:51]}  Qf6 {[%clk 0:01:19]} 42. hxg5+ {[%clk 0:01:50]}  Qxg5 {[%clk 0:01:20]} 43. Qb6+ {[%clk 0:01:50]}  Kh5 {[%clk 0:01:19]} 44. Qxb7 {[%clk 0:01:46]}  Kg4 {[%clk 0:01:11]} 45. Qb2 {[%clk 0:01:40]}  f4 {[%clk 0:01:03]} 46. gxf4 {[%clk 0:01:00]}  Kxf4+ {[%clk 0:01:00]} 47. Kh1 {[%clk 0:01:00]}  e3 {[%clk 0:00:49]} 48. Qh2+ {[%clk 0:00:53]}  Ke4 {[%clk 0:00:40]} 49. Qc2+ {[%clk 0:00:50]}  Kf3 {[%clk 0:00:36]} 50. Qd1+ {[%clk 0:00:48]}  e2 {[%clk 0:00:36]} 51. Qd3+ {[%clk 0:00:48]}  Kf2 {[%clk 0:00:36]} 52. Qd4+ {[%clk 0:00:27]}  Kf1 {[%clk 0:00:34]} 0-1

[Event "December 5 Early 2023"]
[Site "https://www.chess.com"]
[Date "2023.12.05"]
[Round "1"]
[White "Jaiveer Mahendru"]
[Black "Cardozo Munar, Carlos Eduardo"]
[Result "1-0"]
[Board "185"]
[TimeControl "180+1"]
[WhiteFideId "25611151"]
[BlackFideId "4409477"]
[WhiteElo "2598"]
[BlackElo "2272"]
[WhiteTeam "IND"]
[BlackTeam "COL"]
[WhiteClock "0:01:38"]
[BlackClock "0:00:00"]

1. f4 {[%clk 0:03:00]}  d5 {[%clk 0:02:58]} 2. Nf3 {[%clk 0:03:01]}  h6 {[%clk 0:02:59]} 3. g3 {[%clk 0:03:01]}  g5 {[%clk 0:02:59]} 4. fxg5 {[%clk 0:03:01]}  hxg5 {[%clk 0:02:59]} 5. Nxg5 {[%clk 0:03:02]}  Qd6 {[%clk 0:03:00]} 6. d4 {[%clk 0:03:00]}  Nf6 {[%clk 0:02:53]} 7. Nc3 {[%clk 0:02:50]}  Rxh2 {[%clk 0:02:49]} 8. Rxh2 {[%clk 0:02:45]}  Qxg3+ {[%clk 0:02:49]} 9. Rf2 {[%clk 0:02:28]}  Ng4 {[%clk 0:02:49]} 10. Nh3 {[%clk 0:02:19]}  Nxf2 {[%clk 0:01:45]} 11. Nxf2 {[%clk 0:02:20]}  c6 {[%clk 0:01:26]} 12. Qd3 {[%clk 0:02:16]}  Qh4 {[%clk 0:01:24]} 13. e4 {[%clk 0:02:11]}  Na6 {[%clk 0:01:09]} 14. Be3 {[%clk 0:02:09]}  Bg4 {[%clk 0:01:03]} 15. exd5 {[%clk 0:02:05]}  Nb4 {[%clk 0:01:01]} 16. Qd2 {[%clk 0:02:01]}  O-O-O {[%clk 0:00:22]} 17. dxc6 {[%clk 0:01:56]}  Nxc6 {[%clk 0:00:16]} 18. Ne2 {[%clk 0:01:41]}  Bg7 {[%clk 0:00:07]} 19. O-O-O {[%clk 0:01:39]}  Nxd4 {[%clk 0:00:03]} 20. Nxd4 {[%clk 0:01:39]}  Bxd1 {[%clk 0:00:00]} 21. Qc3+ {[%clk 0:01:38]} 1-0

[Event "December 5 Early 2023"]
[Site "https://www.chess.com"]
[Date "2023.12.05"]
[Round "1"]
[White "Yezhel, Valiantsin"]
[Black "Martin, Lewis"]
[Result "1-0"]
[Board "187"]
[TimeControl "180+1"]
[WhiteFideId "13504983"]
[BlackFideId "410551"]
[WhiteElo "2597"]
[BlackElo "2259"]
[WhiteTeam "FID"]
[BlackTeam "ENG"]
[WhiteClock "0:01:58"]
[BlackClock "0:00:14"]

1. d4 {[%clk 0:03:00]}  d5 {[%clk 0:00:50]} 2. Nf3 {[%clk 0:02:58]}  Nf6 {[%clk 0:00:49]} 3. Bg5 {[%clk 0:02:57]}  Ne4 {[%clk 0:00:48]} 4. Bh4 {[%clk 0:02:58]}  c5 {[%clk 0:00:48]} 5. e3 {[%clk 0:02:58]}  Nc6 {[%clk 0:00:48]} 6. c3 {[%clk 0:02:58]}  cxd4 {[%clk 0:00:47]} 7. exd4 {[%clk 0:02:57]}  Qb6 {[%clk 0:00:44]} 8. Qb3 {[%clk 0:02:57]}  Qxb3 {[%clk 0:00:42]} 9. axb3 {[%clk 0:02:58]}  Bf5 {[%clk 0:00:40]} 10. b4 {[%clk 0:02:57]}  Nd6 {[%clk 0:00:36]} 11. Nbd2 {[%clk 0:02:56]}  e6 {[%clk 0:00:36]} 12. Be2 {[%clk 0:02:54]}  Be7 {[%clk 0:00:36]} 13. O-O {[%clk 0:02:52]}  O-O {[%clk 0:00:33]} 14. Ra3 {[%clk 0:02:44]}  a6 {[%clk 0:00:32]} 15. Rfa1 {[%clk 0:02:41]}  Bxh4 {[%clk 0:00:30]} 16. Nxh4 {[%clk 0:02:41]}  Ne7 {[%clk 0:00:30]} 17. Nxf5 {[%clk 0:02:41]}  Nexf5 {[%clk 0:00:29]} 18. b5 {[%clk 0:02:38]}  Rfc8 {[%clk 0:00:19]} 19. bxa6 {[%clk 0:02:37]}  bxa6 {[%clk 0:00:19]} 20. Rxa6 {[%clk 0:02:37]}  Rxa6 {[%clk 0:00:19]} 21. Rxa6 {[%clk 0:02:38]}  Nxd4 {[%clk 0:00:18]} 22. cxd4 {[%clk 0:02:37]}  Rc1+ {[%clk 0:00:19]} 23. Bf1 {[%clk 0:02:34]}  Ne8 {[%clk 0:00:17]} 24. b4 {[%clk 0:02:22]}  h5 {[%clk 0:00:17]} 25. Ra8 {[%clk 0:02:19]}  Kf8 {[%clk 0:00:17]} 26. b5 {[%clk 0:02:19]}  Rc2 {[%clk 0:00:16]} 27. Nb3 {[%clk 0:02:12]}  Rb2 {[%clk 0:00:16]} 28. Nc5 {[%clk 0:02:12]}  Ke7 {[%clk 0:00:16]} 29. f3 {[%clk 0:02:08]}  Nc7 {[%clk 0:00:16]} 30. Ra7 {[%clk 0:02:09]}  Kd6 {[%clk 0:00:16]} 31. Rb7 {[%clk 0:02:04]}  e5 {[%clk 0:00:16]} 32. dxe5+ {[%clk 0:02:02]}  Kxc5 {[%clk 0:00:15]} 33. Rxc7+ {[%clk 0:02:02]}  Kd4 {[%clk 0:00:16]} 34. Rxf7 {[%clk 0:02:01]}  Ke3 {[%clk 0:00:16]} 35. e6 {[%clk 0:01:58]}  d4 {[%clk 0:00:14]} 36. e7 {[%clk 0:01:58]} 1-0

[Event "December 5 Early 2023"]
[Site "https://www.chess.com"]
[Date "2023.12.05"]
[Round "1"]
[White "Skatchkov, Valery"]
[Black "Vifleemskaia, Svetlana"]
[Result "1-0"]
[Board "189"]
[TimeControl "180+1"]
[WhiteFideId "24195812"]
[BlackFideId "4129490"]
[WhiteElo "2594"]
[BlackElo "2257"]
[WhiteTeam "RUS"]
[BlackTeam "RUS"]
[WhiteClock "0:01:26"]
[BlackClock "0:00:42"]

1. d4 {[%clk 0:03:00]}  Nf6 {[%clk 0:02:59]} 2. c4 {[%clk 0:03:01]}  e6 {[%clk 0:02:59]} 3. Nf3 {[%clk 0:03:01]}  Bb4+ {[%clk 0:02:59]} 4. Nbd2 {[%clk 0:03:01]}  b6 {[%clk 0:02:59]} 5. a3 {[%clk 0:02:59]}  Bxd2+ {[%clk 0:02:56]} 6. Qxd2 {[%clk 0:03:00]}  Bb7 {[%clk 0:02:54]} 7. e3 {[%clk 0:03:01]}  a5 {[%clk 0:02:52]} 8. Be2 {[%clk 0:03:01]}  a4 {[%clk 0:02:52]} 9. O-O {[%clk 0:02:56]}  d6 {[%clk 0:02:52]} 10. Ne1 {[%clk 0:02:47]}  Nbd7 {[%clk 0:02:51]} 11. f3 {[%clk 0:02:46]}  O-O {[%clk 0:02:48]} 12. e4 {[%clk 0:02:47]}  e5 {[%clk 0:02:46]} 13. d5 {[%clk 0:02:46]}  Nc5 {[%clk 0:02:42]} 14. Qc2 {[%clk 0:02:45]}  Nb3 {[%clk 0:02:38]} 15. Rb1 {[%clk 0:02:45]}  Nd4 {[%clk 0:02:39]} 16. Qd1 {[%clk 0:02:45]}  h6 {[%clk 0:02:33]} 17. Be3 {[%clk 0:02:45]}  Nxe2+ {[%clk 0:02:25]} 18. Qxe2 {[%clk 0:02:46]}  Ba6 {[%clk 0:02:25]} 19. Nc2 {[%clk 0:02:44]}  b5 {[%clk 0:02:23]} 20. cxb5 {[%clk 0:02:43]}  Bb7 {[%clk 0:02:19]} 21. Nb4 {[%clk 0:02:41]}  Ra5 {[%clk 0:02:12]} 22. Rbc1 {[%clk 0:01:56]}  Qd7 {[%clk 0:02:01]} 23. b6 {[%clk 0:01:56]}  cxb6 {[%clk 0:01:57]} 24. Bxb6 {[%clk 0:01:55]}  Ba6 {[%clk 0:01:44]} 25. Nxa6 {[%clk 0:01:45]}  Qb5 {[%clk 0:01:34]} 26. Qxb5 {[%clk 0:01:34]}  Rxb5 {[%clk 0:01:35]} 27. Bc7 {[%clk 0:01:35]}  Rxb2 {[%clk 0:01:30]} 28. Bxd6 {[%clk 0:01:35]}  Ra8 {[%clk 0:01:27]} 29. Nb4 {[%clk 0:01:31]}  Nh5 {[%clk 0:01:22]} 30. Bxe5 {[%clk 0:01:28]}  f6 {[%clk 0:00:42]} 31. Bxb2 {[%clk 0:01:26]} 1-0

[Event "December 5 Early 2023"]
[Site "https://www.chess.com"]
[Date "2023.12.05"]
[Round "1"]
[White "Avramidou, Anastasia"]
[Black "De Souza, Cristiano Gomes"]
[Result "1-0"]
[Board "191"]
[TimeControl "180+1"]
[WhiteFideId "4239873"]
[BlackFideId "2151758"]
[WhiteElo "2589"]
[BlackElo "2254"]
[WhiteTeam "GRE"]
[BlackTeam "BRA"]
[WhiteClock "0:00:37"]
[BlackClock "0:00:43"]

1. Nf3 {[%clk 0:03:00]}  Nf6 {[%clk 0:02:54]} 2. c4 {[%clk 0:03:00]}  g6 {[%clk 0:02:54]} 3. Nc3 {[%clk 0:03:00]}  Bg7 {[%clk 0:02:52]} 4. h4 {[%clk 0:03:00]}  d6 {[%clk 0:02:50]} 5. d4 {[%clk 0:02:57]}  Nc6 {[%clk 0:02:47]} 6. e4 {[%clk 0:02:56]}  O-O {[%clk 0:02:36]} 7. Be2 {[%clk 0:02:56]}  Bg4 {[%clk 0:02:33]} 8. Be3 {[%clk 0:02:55]}  h5 {[%clk 0:02:31]} 9. Ng5 {[%clk 0:02:54]}  Bxe2 {[%clk 0:02:30]} 10. Qxe2 {[%clk 0:02:54]}  e5 {[%clk 0:02:29]} 11. d5 {[%clk 0:02:54]}  Nd4 {[%clk 0:02:28]} 12. Qd2 {[%clk 0:02:53]}  c5 {[%clk 0:02:26]} 13. f3 {[%clk 0:02:48]}  Nh7 {[%clk 0:02:22]} 14. O-O-O {[%clk 0:02:33]}  a6 {[%clk 0:02:18]} 15. Kb1 {[%clk 0:02:25]}  Rb8 {[%clk 0:02:18]} 16. g4 {[%clk 0:02:19]}  Nf6 {[%clk 0:02:14]} 17. Rdg1 {[%clk 0:02:11]}  b5 {[%clk 0:02:11]} 18. cxb5 {[%clk 0:02:09]}  axb5 {[%clk 0:02:10]} 19. gxh5 {[%clk 0:02:03]}  Nxh5 {[%clk 0:02:09]} 20. Ne2 {[%clk 0:01:57]}  b4 {[%clk 0:02:06]} 21. Ng3 {[%clk 0:01:54]}  Nf4 {[%clk 0:01:58]} 22. Qh2 {[%clk 0:01:32]}  f6 {[%clk 0:01:52]} 23. Bxd4 {[%clk 0:01:14]}  fxg5 {[%clk 0:01:47]} 24. Be3 {[%clk 0:01:12]}  Qa5 {[%clk 0:01:40]} 25. hxg5 {[%clk 0:01:03]}  Ra8 {[%clk 0:01:37]} 26. b3 {[%clk 0:01:04]}  c4 {[%clk 0:01:34]} 27. Nf5 {[%clk 0:00:48]}  Rxf5 {[%clk 0:01:26]} 28. exf5 {[%clk 0:00:46]}  cxb3 {[%clk 0:01:22]} 29. Qh7+ {[%clk 0:00:46]}  Kf8 {[%clk 0:01:22]} 30. Rh2 {[%clk 0:00:38]}  bxa2+ {[%clk 0:01:16]} 31. Ka1 {[%clk 0:00:38]}  e4+ {[%clk 0:01:15]} 32. f6 {[%clk 0:00:39]}  Ra7 {[%clk 0:00:55]} 33. fxg7+ {[%clk 0:00:39]}  Rxg7 {[%clk 0:00:54]} 34. Qh8+ {[%clk 0:00:39]}  Kf7 {[%clk 0:00:53]} 35. Rh7 {[%clk 0:00:40]}  Rxh7 {[%clk 0:00:52]} 36. Qxh7+ {[%clk 0:00:40]}  Ke8 {[%clk 0:00:51]} 37. Qg8+ {[%clk 0:00:38]}  Kd7 {[%clk 0:00:50]} 38. Qf7+ {[%clk 0:00:38]}  Kc8 {[%clk 0:00:49]} 39. Rc1+ {[%clk 0:00:38]}  Kb8 {[%clk 0:00:49]} 40. Bxf4 {[%clk 0:00:37]}  b3 {[%clk 0:00:43]} 41. Bxd6+ {[%clk 0:00:37]} 1-0

[Event "December 5 Early 2023"]
[Site "https://www.chess.com"]
[Date "2023.12.05"]
[Round "1"]
[White "Sami, Sama"]
[Black "Aaditya Dhingra"]
[Result "0-1"]
[Board "192"]
[TimeControl "180+1"]
[WhiteFideId "4802926"]
[BlackFideId "25678191"]
[WhiteElo "2253"]
[BlackElo "2589"]
[WhiteTeam "IRQ"]
[BlackTeam "IND"]
[WhiteClock "0:01:10"]
[BlackClock "0:01:04"]

1. e4 {[%clk 0:03:00]}  c6 {[%clk 0:02:59]} 2. d4 {[%clk 0:03:00]}  g6 {[%clk 0:02:58]} 3. c4 {[%clk 0:02:58]}  Bg7 {[%clk 0:02:58]} 4. Nc3 {[%clk 0:02:58]}  d6 {[%clk 0:02:57]} 5. Nf3 {[%clk 0:02:58]}  Bg4 {[%clk 0:02:55]} 6. Be3 {[%clk 0:02:54]}  Nd7 {[%clk 0:02:50]} 7. h3 {[%clk 0:02:49]}  Bxf3 {[%clk 0:02:49]} 8. gxf3 {[%clk 0:02:49]}  e5 {[%clk 0:02:48]} 9. h4 {[%clk 0:02:45]}  exd4 {[%clk 0:02:44]} 10. Bxd4 {[%clk 0:02:45]}  Bxd4 {[%clk 0:02:40]} 11. Qxd4 {[%clk 0:02:44]}  Qf6 {[%clk 0:02:40]} 12. Qxf6 {[%clk 0:02:44]}  Ngxf6 {[%clk 0:02:38]} 13. O-O-O {[%clk 0:02:43]}  Ke7 {[%clk 0:02:37]} 14. f4 {[%clk 0:02:38]}  Nh5 {[%clk 0:02:34]} 15. Ne2 {[%clk 0:02:30]}  Nc5 {[%clk 0:02:24]} 16. f3 {[%clk 0:02:28]}  Ne6 {[%clk 0:02:06]} 17. f5 {[%clk 0:02:22]}  gxf5 {[%clk 0:02:05]} 18. exf5 {[%clk 0:02:22]}  Neg7 {[%clk 0:01:59]} 19. Bh3 {[%clk 0:02:20]}  Rad8 {[%clk 0:01:57]} 20. Bg4 {[%clk 0:02:19]}  Kf6 {[%clk 0:01:52]} 21. Rd4 {[%clk 0:02:14]}  Rhe8 {[%clk 0:01:51]} 22. Nf4 {[%clk 0:01:58]}  Nxf4 {[%clk 0:01:46]} 23. Rxf4 {[%clk 0:01:58]}  h5 {[%clk 0:01:46]} 24. Bh3 {[%clk 0:01:56]}  Re2 {[%clk 0:01:45]} 25. Rd1 {[%clk 0:01:42]}  d5 {[%clk 0:01:37]} 26. cxd5 {[%clk 0:01:42]}  Rxd5 {[%clk 0:01:37]} 27. Rfd4 {[%clk 0:01:38]}  Ree5 {[%clk 0:01:09]} 28. f4 {[%clk 0:01:30]}  Rxd4 {[%clk 0:01:05]} 29. fxe5+ {[%clk 0:01:30]}  Kxe5 {[%clk 0:01:06]} 30. Re1+ {[%clk 0:01:10]}  Kf6 {[%clk 0:01:04]} 0-1

[Event "December 5 Early 2023"]
[Site "https://www.chess.com"]
[Date "2023.12.05"]
[Round "1"]
[White "Morgunov, Marc"]
[Black "Ernst, Luca"]
[Result "1-0"]
[Board "193"]
[TimeControl "180+1"]
[WhiteFideId "1640305"]
[BlackFideId "45117055"]
[WhiteElo "2588"]
[BlackElo "2251"]
[WhiteTeam "AUT"]
[BlackTeam "FRA"]
[WhiteClock "0:01:32"]
[BlackClock "0:00:00"]

1. e4 {[%clk 0:02:58]}  c5 {[%clk 0:02:57]} 2. Nf3 {[%clk 0:02:57]}  d6 {[%clk 0:02:56]} 3. d4 {[%clk 0:02:56]}  cxd4 {[%clk 0:02:57]} 4. Nxd4 {[%clk 0:02:57]}  Nf6 {[%clk 0:02:56]} 5. Nc3 {[%clk 0:02:57]}  Bd7 {[%clk 0:02:56]} 6. Bg5 {[%clk 0:02:54]}  Nc6 {[%clk 0:02:51]} 7. Qd2 {[%clk 0:02:53]}  Rc8 {[%clk 0:02:51]} 8. O-O-O {[%clk 0:02:53]}  Nxd4 {[%clk 0:02:50]} 9. Qxd4 {[%clk 0:02:54]}  Qa5 {[%clk 0:02:51]} 10. Be3 {[%clk 0:02:43]}  b6 {[%clk 0:02:19]} 11. f3 {[%clk 0:02:39]}  g6 {[%clk 0:02:15]} 12. g4 {[%clk 0:02:33]}  Bg7 {[%clk 0:02:14]} 13. Qd2 {[%clk 0:02:33]}  O-O {[%clk 0:02:09]} 14. Kb1 {[%clk 0:02:32]}  Be6 {[%clk 0:01:30]} 15. Nd5 {[%clk 0:02:19]}  Nxd5 {[%clk 0:01:02]} 16. Qxa5 {[%clk 0:02:17]}  Nxe3 {[%clk 0:00:40]} 17. Qe1 {[%clk 0:01:57]}  Rxc2 {[%clk 0:00:27]} 18. Rd2 {[%clk 0:01:57]}  Rfc8 {[%clk 0:00:09]} 19. Bd3 {[%clk 0:01:54]}  Rxd2 {[%clk 0:00:06]} 20. Qxd2 {[%clk 0:01:55]}  Bh6 {[%clk 0:00:05]} 21. Rc1 {[%clk 0:01:47]}  Nxg4 {[%clk 0:00:03]} 22. Rxc8+ {[%clk 0:01:47]}  Bxc8 {[%clk 0:00:04]} 23. Qc3 {[%clk 0:01:44]}  Ne5 {[%clk 0:00:02]} 24. Qxc8+ {[%clk 0:01:44]}  Kg7 {[%clk 0:00:02]} 25. Be2 {[%clk 0:01:41]}  Bf4 {[%clk 0:00:02]} 26. Qc7 {[%clk 0:01:40]}  e6 {[%clk 0:00:02]} 27. Qxa7 {[%clk 0:01:39]}  b5 {[%clk 0:00:02]} 28. a4 {[%clk 0:01:33]}  bxa4 {[%clk 0:00:02]} 29. Qxa4 {[%clk 0:01:33]}  Bxh2 {[%clk 0:00:02]} 30. b4 {[%clk 0:01:33]}  Bg1 {[%clk 0:00:02]} 31. b5 {[%clk 0:01:32]}  h5 {[%clk 0:00:03]} 32. Qd1 {[%clk 0:01:32]}  Bb6 {[%clk 0:00:00]} 33. Qxd6 {[%clk 0:01:32]} 1-0